bitfinex/quotes_BTCUSD_20241002
["timestamp","ask_amount","ask_price","bid_price","bid_amount"]
[1727869210734,6.64216535,61445.0,61444.0,79.76014583]
[1727869210953,6.62816535,61445.0,61444.0,79.76014583]
[1727869211168,5.92816535,61445.0,61444.0,79.76014583]
[1727869211380,5.94216535,61445.0,61444.0,79.76712833]
[1727869211599,5.29114239,61445.0,61444.0,79.76712833]
[1727869211817,5.27314239,61445.0,61444.0,79.84302833]
[1727869212031,5.30114239,61445.0,61444.0,79.84302833]
[1727869212479,5.27314239,61445.0,61444.0,79.84302833]
[1727869212690,5.28714239,61445.0,61444.0,79.84302833]
[1727869212898,5.3756061,61445.0,61444.0,79.84302833]
[1727869213112,5.55309063,61445.0,61444.0,79.84302833]
[1727869213325,5.58061753,61445.0,61444.0,79.84302833]
[1727869213599,5.70205896,61445.0,61444.0,79.84302833]
[1727869213826,4.93661753,61445.0,61444.0,79.84302833]
[1727869214040,5.01978607,61445.0,61444.0,79.84302833]
[1727869214258,0.6655269,61445.0,61444.0,79.84302833]
[1727869214482,0.77144508,61445.0,61444.0,79.84302833]
[1727869214702,0.77644508,61445.0,61444.0,79.84302833]
[1727869214989,0.76417344,61445.0,61444.0,79.84302833]
[1727869215205,0.75217344,61445.0,61444.0,79.84302833]
[1727869215625,0.7072739,61445.0,61444.0,79.84302833]
[1727869215838,0.96966875,61445.0,61444.0,79.84302833]
[1727869216054,0.86875843,61445.0,61444.0,79.84302833]
[1727869216318,0.84323153,61445.0,61444.0,79.84302833]
[1727869216548,0.95723153,61445.0,61444.0,79.84302833]
[1727869216974,0.94323153,61445.0,61444.0,79.84302833]
[1727869217207,0.95723153,61445.0,61444.0,79.84302833]
[1727869217430,0.97123153,61445.0,61444.0,79.84402833]
[1727869217662,1.03014185,61445.0,61444.0,79.84302833]
[1727869217872,0.96023153,61445.0,61444.0,79.84402833]
[1727869218086,0.95723153,61445.0,61444.0,79.84302833]
[1727869218524,0.95723153,61445.0,61444.0,79.84402833]
[1727869218525,0.94623153,61445.0,61444.0,79.84402833]
[1727869218951,0.96023153,61445.0,61444.0,79.84402833]
[1727869219166,0.98575757,61445.0,61444.0,79.84402833]
[1727869220044,0.57471172,61445.0,61444.0,79.84402833]
[1727869220259,0.50175757,61445.0,61444.0,79.84402833]
[1727869220482,5.55175757,61445.0,61444.0,79.84402833]
[1727869220940,5.52623153,61445.0,61444.0,79.84402833]
[1727869221596,5.68601647,61445.0,61444.0,79.67122833]
[1727869221811,5.63969361,61445.0,61444.0,79.10665204]
[1727869222030,5.76128387,61445.0,61444.0,79.10665204]
[1727869222249,5.63969361,61445.0,61444.0,79.10665204]
[1727869222461,5.52223153,61445.0,61444.0,79.10665204]
[1727869223210,5.337566,61445.0,61444.0,79.10665204]
[1727869223451,5.41053236,61445.0,61444.0,79.18305204]
[1727869223925,5.337566,61445.0,61444.0,79.18305204]
[1727869224167,5.60701899,61445.0,61444.0,79.18205204]
[1727869224427,5.62101899,61445.0,61444.0,79.18205204]
[1727869224669,5.60701899,61445.0,61444.0,79.18205204]
[1727869225166,5.54805053,61445.0,61444.0,79.18205204]
[1727869225892,5.53405053,61445.0,61444.0,79.18205204]
[1727869226144,5.54557742,61445.0,61444.0,79.18205204]
[1727869226659,5.55957742,61445.0,61444.0,79.18205204]
[1727869228205,5.54557742,61445.0,61444.0,79.18205204]
[1727869228463,5.57357742,61445.0,61444.0,79.18205204]
[1727869228965,5.55957742,61445.0,61444.0,79.18205204]
[1727869229200,5.57357742,61445.0,61444.0,79.18205204]
[1727869229705,5.64655646,61445.0,61444.0,79.18205204]
[1727869230672,0.59655646,61445.0,61444.0,79.18205204]
[1727869231179,5.64655646,61445.0,61444.0,79.18205204]
[1727869231432,5.57357742,61445.0,61444.0,79.18205204]
[1727869231927,5.57357742,61445.0,61444.0,79.16446562]
[1727869233452,5.56357742,61445.0,61444.0,79.16446562]
[1727869233701,5.57357742,61445.0,61444.0,79.16446562]
[1727869234680,5.57357742,61445.0,61444.0,79.08806562]
[1727869234681,5.72338143,61445.0,61444.0,79.08806562]
[1727869234941,5.84146463,61445.0,61444.0,79.08806562]
[1727869235192,5.54805053,61445.0,61444.0,79.09459189]
[1727869235687,5.53405053,61445.0,61444.0,79.09459189]
[1727869236111,5.6696348,61445.0,61444.0,79.09459189]
[1727869236336,5.4458377,61445.0,61444.0,79.09459189]
[1727869236567,5.42151557,61445.0,61444.0,79.09459189]
[1727869237045,2.184566,61445.0,61444.0,79.09459189]
[1727869237286,0.193566,61445.0,61444.0,79.17039189]
[1727869237509,0.193566,61445.0,61444.0,79.34409189]
[1727869237990,0.20509001,61445.0,61444.0,79.34409189]
[1727869238213,0.19109001,61445.0,61444.0,79.34409189]
[1727869238427,0.20509001,61445.0,61444.0,79.34409189]
[1727869238638,0.21909001,61445.0,61444.0,79.34409189]
[1727869238856,0.19109001,61445.0,61444.0,79.34409189]
[1727869239070,0.31909001,61445.0,61444.0,79.34409189]
[1727869242487,0.31709001,61445.0,61444.0,79.34409189]
[1727869242714,0.31909001,61445.0,61444.0,79.34409189]
[1727869242967,0.293566,61445.0,61444.0,79.34409189]
[1727869244506,0.265566,61445.0,61444.0,79.34409189]
[1727869244730,0.30508981,61445.0,61444.0,79.34409189]
[1727869244950,0.31908981,61445.0,61444.0,79.34409189]
[1727869245171,0.30508981,61445.0,61444.0,79.34409189]
[1727869245388,0.29108981,61445.0,61444.0,79.34409189]
[1727869245650,0.30508981,61445.0,61444.0,79.34409189]
[1727869245877,0.30508981,61445.0,61444.0,79.0025674]
[1727869246097,6.6585851,61445.0,61444.0,78.41146038]
[1727869246323,6.61637556,61445.0,61444.0,78.41146038]
[1727869246764,6.543466,61445.0,61444.0,78.42530947]
[1727869247441,6.557466,61445.0,61444.0,78.42530947]
[1727869247875,6.543466,61445.0,61444.0,78.42530947]
[1727869248088,6.529466,61445.0,61444.0,78.42530947]
[1727869248326,6.543466,61445.0,61444.0,78.42530947]
[1727869248546,6.62668063,61445.0,61444.0,78.42530947]
[1727869248759,6.64068063,61445.0,61444.0,78.42530947]
[1727869248974,6.65468063,61445.0,61444.0,78.42530947]
[1727869249200,6.68021225,61445.0,61444.0,78.42530947]
[1727869249434,6.7045159,61445.0,61444.0,78.42530947]
[1727869249651,6.58299762,61445.0,61444.0,78.42530947]
[1727869250093,6.40589762,61445.0,61444.0,78.42530947]
[1727869251432,6.45841035,61445.0,61444.0,78.42530947]
[1727869252539,6.45841035,61445.0,61444.0,77.69798318]
[1727869252786,6.57989762,61445.0,61444.0,77.69798318]
[1727869253033,1.84232535,61445.0,61444.0,76.87370839]
[1727869253257,1.66442535,61445.0,61444.0,75.39475435]
[1727869253528,1.66442535,61445.0,61444.0,74.85717535]
[1727869253529,2.49651525,61445.0,61444.0,74.85717535]
[1727869253752,2.49651525,61445.0,61444.0,74.31959935]
[1727869253967,2.51051525,61445.0,61444.0,74.02739935]
[1727869254194,2.51051525,61445.0,61444.0,73.83284935]
[1727869254409,2.49651525,61445.0,61444.0,73.67084935]
[1727869254688,2.33642535,61445.0,61444.0,73.64960389]
[1727869254899,2.36442535,61445.0,61444.0,73.48760389]
[1727869255118,2.35042535,61445.0,61444.0,73.19540389]
[1727869255341,2.36442535,61445.0,61444.0,72.83885389]
[1727869255567,3.61002535,61445.0,61444.0,71.55709469]
[1727869255799,3.51952535,61445.0,61444.0,68.77285958]
[1727869256037,3.51952535,61445.0,61444.0,60.44392171]
[1727869256038,3.83711303,61445.0,61444.0,60.44392171]
[1727869256260,3.811576,61445.0,61444.0,58.71590278]
[1727869256481,4.04233593,61445.0,61444.0,56.93390278]
[1727869256700,4.04233593,61445.0,61444.0,55.79990278]
[1727869256914,4.04233593,61445.0,61444.0,55.66970278]
[1727869257167,4.05633593,61445.0,61444.0,55.63715278]
[1727869257379,4.25400637,61445.0,61444.0,55.63715278]
[1727869257594,4.22600637,61445.0,61444.0,55.63715278]
[1727869257802,4.22600637,61445.0,61444.0,55.60460278]
[1727869258017,4.25400637,61445.0,61444.0,55.47440278]
[1727869258484,4.22600637,61445.0,61444.0,55.09039753]
[1727869258698,4.22600637,61445.0,61444.0,55.05079039]
[1727869258699,4.25400637,61445.0,61444.0,55.05079039]
[1727869258919,4.3065191,61445.0,61444.0,55.05079039]
[1727869259132,3.61805619,61445.0,61444.0,54.69074749]
[1727869259357,3.63205619,61445.0,61444.0,54.69074749]
[1727869259806,3.63205619,61445.0,61444.0,54.65819749]
[1727869260447,3.63508905,61445.0,61444.0,54.56054749]
[1727869260662,3.64908905,61445.0,61444.0,54.52799749]
[1727869260875,3.63508905,61445.0,61444.0,54.46289749]
[1727869261172,3.59657632,61445.0,61444.0,54.36524749]
[1727869261394,3.54230383,61445.0,61444.0,54.36524749]
[1727869261832,3.55630383,61445.0,61444.0,54.30014749]
[1727869262051,3.55630383,61445.0,61444.0,54.26759749]
[1727869262718,3.55630383,61445.0,61444.0,54.14140999]
[1727869262938,3.55630383,61445.0,61444.0,53.97865999]
[1727869262939,3.64209238,61445.0,61444.0,53.97865999]
[1727869263160,3.64209238,61445.0,61444.0,53.96780815]
[1727869263382,3.80614206,61445.0,61444.0,53.96780815]
[1727869263599,3.80660331,61445.0,61444.0,53.96780815]
[1727869263811,3.80660331,61445.0,61444.0,53.93525815]
[1727869264028,3.64209238,61445.0,61444.0,53.03590495]
[1727869264250,3.71581972,61445.0,61444.0,52.49330995]
[1727869264485,3.71581972,61445.0,61444.0,51.67691995]
[1727869264720,3.71581972,61445.0,61444.0,51.35032495]
[1727869264721,3.73261995,61445.0,61444.0,51.35032495]
[1727869264948,3.71861995,61445.0,61444.0,50.89352995]
[1727869265173,3.71861995,61445.0,61444.0,50.12616195]
[1727869265404,3.71861995,61445.0,61444.0,49.38929239]
[1727869265626,3.73261995,61445.0,61444.0,48.98168045]
[1727869265849,3.64101995,61445.0,61444.0,47.67801561]
[1727869266086,3.33218263,61445.0,61444.0,45.92533412]
[1727869266336,3.76371828,61445.0,61444.0,40.11820336]
[1727869266553,3.6479502,61445.0,61444.0,34.74156636]
[1727869266793,3.61262107,61445.0,61444.0,29.30012803]
[1727869267010,4.32449834,61445.0,61444.0,29.16992803]
[1727869267235,4.47070802,61445.0,61444.0,29.14992803]
[1727869267471,4.35003894,61445.0,61444.0,29.14992803]
[1727869267691,4.29405674,61445.0,61444.0,29.14992803]
[1727869267912,3.92478408,61445.0,61444.0,29.01972803]
[1727869268135,3.86910763,61445.0,61444.0,28.98717803]
[1727869268358,3.84110763,61445.0,61444.0,28.98717803]
[1727869268574,3.90821455,61445.0,61444.0,28.98717803]
[1727869268864,3.92221455,61445.0,61444.0,28.92207803]
[1727869269086,4.00821455,61445.0,61444.0,28.82442803]
[1727869269307,4.08942933,61445.0,61444.0,28.82442803]
[1727869269521,4.10342933,61445.0,61444.0,28.82442803]
[1727869269990,4.10342933,61445.0,61444.0,28.79187803]
[1727869270239,4.08942933,61445.0,61444.0,28.57388694]
[1727869270458,4.24953971,61445.0,61444.0,28.57388694]
[1727869270690,4.08942933,61445.0,61444.0,28.57388694]
[1727869270911,4.07542933,61445.0,61444.0,28.57388694]
[1727869271135,4.10342933,61445.0,61444.0,28.44368694]
[1727869271367,4.10342933,61445.0,61444.0,28.41113694]
[1727869271584,2.40737093,61445.0,61444.0,28.41113694]
[1727869271800,2.42137093,61445.0,61444.0,28.41113694]
[1727869272016,2.43537093,61445.0,61444.0,28.328966]
[1727869272252,2.43537093,61445.0,61444.0,27.904711]
[1727869272481,2.4098326,61445.0,61444.0,27.578106]
[1727869272720,4.1083326,61445.0,61444.0,26.719464]
[1727869272953,2.9543326,61445.0,61444.0,21.1637723]
[1727869273189,2.87078408,61445.0,61444.0,15.7871603]
[1727869273412,3.68178408,61445.0,61444.0,15.7871603]
[1727869273630,3.9295693,61445.0,61444.0,15.7871603]
[1727869273838,3.9435693,61445.0,61444.0,15.7871603]
[1727869274131,3.9155693,61445.0,61444.0,15.57680076]
[1727869274350,3.8155693,61445.0,61444.0,15.49516076]
[1727869274571,9.0396517,61445.0,61444.0,15.49516076]
[1727869274792,8.8935693,61445.0,61444.0,15.49516076]
[1727869275005,8.93267622,61445.0,61444.0,15.33241076]
[1727869275226,9.09275354,61445.0,61444.0,15.33241076]
[1727869275467,8.97221238,61445.0,61444.0,15.33241076]
[1727869275687,8.35821238,61445.0,61444.0,15.33241076]
[1727869275903,8.33267622,61445.0,61444.0,15.29986076]
[1727869276119,9.57827622,61445.0,61444.0,14.40050756]
[1727869276905,9.57827622,61445.0,61444.0,14.36795756]
[1727869277130,9.57827622,61445.0,61444.0,14.20620182]
[1727869277131,9.59227622,61445.0,61444.0,14.20620182]
[1727869277356,9.659491,61445.0,61444.0,14.20620182]
[1727869277582,9.04777622,61445.0,61444.0,14.20620182]
[1727869278457,9.828991,61445.0,61444.0,14.04345182]
[1727869278674,9.8545273,61445.0,61444.0,14.04345182]
[1727869278897,9.77331252,61445.0,61444.0,14.04345182]
[1727869279162,9.77331252,61445.0,61444.0,13.83987182]
[1727869279377,9.77331252,61445.0,61444.0,13.75821182]
[1727869279378,9.8545273,61445.0,61444.0,13.75821182]
[1727869279593,9.8545273,61445.0,61444.0,13.73189182]
[1727869279812,4.8045273,61445.0,61444.0,13.73189182]
[1727869280030,4.8045273,61445.0,61444.0,13.66679182]
[1727869280255,4.8045273,61445.0,61444.0,13.60169182]
[1727869280497,4.8045273,61445.0,61444.0,13.56914182]
[1727869280934,4.72331252,61445.0,61444.0,13.50404182]
[1727869281151,4.72331252,61445.0,61444.0,13.47149182]
[1727869281372,4.8045273,61445.0,61444.0,13.40639182]
[1727869281623,4.72331252,61445.0,61444.0,13.40639182]
[1727869281841,9.7202056,61445.0,61444.0,13.48189182]
[1727869282065,8.4406693,61445.0,61444.0,13.48189182]
[1727869282285,7.1950693,61445.0,61444.0,13.48189182]
[1727869282501,6.99739886,61445.0,61444.0,13.48189182]
[1727869283377,6.44332531,61445.0,61444.0,13.48189182]
[1727869283597,6.29739886,61445.0,61444.0,13.48189182]
[1727869283788,6.45050578,61445.0,61444.0,13.48189182]
[1727869284175,6.43650578,61445.0,61444.0,13.48189182]
[1727869284388,6.58246597,61445.0,61444.0,13.48189182]
[1727869284597,6.45050578,61445.0,61444.0,13.48189182]
[1727869284795,7.29650043,61445.0,61444.0,13.48189182]
[1727869285023,7.29650043,61445.0,61444.0,13.66899182]
[1727869285024,7.08339886,61445.0,61444.0,13.66899182]
[1727869285271,6.85113077,61445.0,61444.0,13.66899182]
[1727869285514,6.85113077,61445.0,61444.0,13.32234182]
[1727869285515,7.2861373,61445.0,61444.0,13.32234182]
[1727869285717,7.05366699,61445.0,61444.0,13.3050687]
[1727869285924,7.05366699,61445.0,61444.0,13.1748687]
[1727869286150,7.01525278,61445.0,61444.0,13.1423187]
[1727869286562,7.11525278,61445.0,61444.0,13.1423187]
[1727869286801,7.10125278,61445.0,61444.0,13.1423187]
[1727869287006,7.11525278,61445.0,61444.0,12.9985187]
[1727869287212,7.11525278,61445.0,61444.0,12.9008687]
[1727869287626,7.10125278,61445.0,61444.0,12.9008687]
[1727869287830,7.18246756,61445.0,61444.0,12.8357687]
[1727869288062,7.10125278,61445.0,61444.0,12.7381187]
[1727869288282,7.18246756,61445.0,61444.0,12.7381187]
[1727869288495,7.16846756,61445.0,61444.0,12.7381187]
[1727869288704,7.20800285,61445.0,61444.0,12.7381187]
[1727869288912,7.14078807,61445.0,61444.0,12.5753687]
[1727869289134,7.22200285,61445.0,61444.0,12.5753687]
[1727869289590,7.20800285,61445.0,61444.0,12.5753687]
[1727869289767,2.18140399,61445.0,61444.0,12.5102687]
[1727869289985,7.22200299,61445.0,61444.0,12.4451687]
[1727869290198,7.20800299,61445.0,61444.0,12.4126187]
[1727869290632,7.22200299,61445.0,61444.0,12.4126187]
[1727869290840,7.22200299,61445.0,61444.0,12.3800687]
[1727869291491,7.14078821,61445.0,61444.0,12.2498687]
[1727869291700,7.22200299,61445.0,61444.0,12.2498687]
[1727869291967,7.22200299,61445.0,61444.0,12.2173187]
[1727869292177,7.22200299,61445.0,61444.0,12.1522187]
[1727869292391,7.22200299,61445.0,61444.0,12.0871187]
[1727869292600,7.41967343,61445.0,61444.0,12.0929447]
[1727869293009,7.39413814,61445.0,61444.0,12.0278447]
[1727869293892,7.39413814,61445.0,61444.0,11.9952947]
[1727869294110,7.39413814,61445.0,61444.0,11.80077546]
[1727869294317,7.39413814,61445.0,61444.0,11.76822546]
[1727869294555,7.39413814,61445.0,61444.0,11.73567546]
[1727869295829,7.39495714,61445.0,61444.0,11.67057546]
[1727869296042,7.42049278,61445.0,61444.0,11.60547546]
[1727869296250,7.39495714,61445.0,61444.0,11.50782546]
[1727869296465,6.69495714,61445.0,61444.0,11.50782546]
[1727869296677,6.55863544,61445.0,61444.0,11.50782546]
[1727869297758,6.55863544,61445.0,61444.0,11.58592546]
[1727869297965,6.61374236,61445.0,61444.0,11.58592546]
[1727869299036,6.63927618,61445.0,61444.0,11.58592546]
[1727869299464,7.33927618,61445.0,61444.0,11.58592546]
[1727869300930,7.35630904,61445.0,61444.0,11.58592546]
[1727869301137,6.65630904,61445.0,61444.0,11.58592546]
[1727869301759,6.65630904,61445.0,61444.0,11.77712546]
[1727869304064,7.1586386,61445.0,61444.0,11.77712546]
[1727869304597,7.00353168,61445.0,61444.0,11.77712546]
[1727869304851,7.16822365,61445.0,61444.0,11.77712546]
[1727869305493,7.19779675,61445.0,61444.0,11.77712546]
[1727869305706,6.33310478,61445.0,61444.0,11.77712546]
[1727869305915,6.31910478,61445.0,61444.0,11.77712546]
[1727869306135,6.43310478,61445.0,61444.0,11.77712546]
[1727869307254,6.41910478,61445.0,61444.0,11.77712546]
[1727869307432,6.43310478,61445.0,61444.0,11.77712546]
[1727869308058,6.41910478,61445.0,61444.0,11.77712546]
[1727869308273,6.43310478,61445.0,61444.0,11.77712546]
[1727869308712,6.45863581,61445.0,61444.0,11.77712546]
[1727869312142,1.41803681,61445.0,61444.0,11.77712546]
[1727869312404,6.45863581,61445.0,61444.0,11.77712546]
[1727869312850,6.45863581,61445.0,61444.0,11.65912333]
[1727869313071,6.43310478,61445.0,61444.0,11.65912333]
[1727869313749,6.41910478,61445.0,61444.0,11.65912333]
[1727869313965,6.43310478,61445.0,61444.0,11.65912333]
[1727869314854,7.13310478,61445.0,61444.0,11.65912333]
[1727869315141,7.11910478,61445.0,61444.0,11.65912333]
[1727869315798,7.13310478,61445.0,61444.0,11.65912333]
[1727869316008,7.15863728,61445.0,61444.0,11.65912333]
[1727869318469,6.40353036,61445.0,61444.0,11.65912333]
[1727869318706,6.23173036,61445.0,61444.0,11.65912333]
[1727869319840,6.28683728,61445.0,61444.0,11.65912333]
[1727869320059,6.25883728,61445.0,61444.0,11.62857833]
[1727869320327,6.28683728,61445.0,61444.0,11.62857833]
[1727869320545,6.27283728,61445.0,61444.0,11.6571152]
[1727869320988,6.43744525,61445.0,61444.0,11.6571152]
[1727869321226,6.45144525,61445.0,61444.0,11.6571152]
[1727869321466,6.28683728,61445.0,61444.0,11.6571152]
[1727869321687,6.45144525,61445.0,61444.0,11.6571152]
[1727869321906,6.45863728,61445.0,61444.0,11.4659152]
[1727869322342,6.44463728,61445.0,61444.0,11.4659152]
[1727869322850,6.41910478,61445.0,61444.0,11.4659152]
[1727869323035,6.43310478,61445.0,61444.0,11.4659152]
[1727869323260,6.41910478,61445.0,61444.0,11.4659152]
[1727869323485,6.40510478,61445.0,61444.0,11.4659152]
[1727869323702,6.41910478,61445.0,61444.0,11.4659152]
[1727869324162,7.11910478,61445.0,61444.0,11.4659152]
[1727869324599,7.1446377,61445.0,61444.0,11.4659152]
[1727869325738,7.1586377,61445.0,61444.0,11.4659152]
[1727869326654,7.1586377,61445.0,61444.0,11.3878152]
[1727869327516,7.1306377,61445.0,61444.0,11.3878152]
[1727869327938,7.1306377,61445.0,61444.0,11.35927833]
[1727869328368,7.1306377,61445.0,61444.0,11.38782964]
[1727869329225,7.1586377,61445.0,61444.0,11.38782964]
[1727869329869,7.1586377,61445.0,61444.0,11.31435916]
[1727869330635,7.1586377,61445.0,61444.0,11.18415916]
[1727869330858,7.1586377,61445.0,61444.0,10.98885916]
[1727869330859,2.43952492,61445.0,61444.0,10.98885916]
[1727869331077,2.19925348,61445.0,61444.0,10.98885916]
[1727869331960,2.19925348,61445.0,61444.0,10.89120916]
[1727869331961,2.20412684,61445.0,61444.0,10.89120916]
[1727869332177,2.19012684,61445.0,61444.0,10.82610916]
[1727869332389,2.20412684,61445.0,61444.0,10.82610916]
[1727869332608,2.19012684,61445.0,61444.0,10.82610916]
[1727869333052,3.67600119,61445.0,61444.0,10.66335916]
[1727869333472,3.69000119,61445.0,61444.0,10.66335916]
[1727869333690,3.44972684,61445.0,61444.0,10.66335916]
[1727869333916,3.44972684,61445.0,61444.0,10.50060916]
[1727869333917,3.67598377,61445.0,61444.0,10.50060916]
[1727869334143,3.44772684,61445.0,61444.0,10.50060916]
[1727869334790,3.44772684,61445.0,61444.0,10.46805916]
[1727869335002,3.44772684,61445.0,61444.0,10.43550916]
[1727869335215,3.44772684,61445.0,61444.0,10.40295916]
[1727869335431,3.44772684,61445.0,61444.0,10.33785916]
[1727869335881,3.67934105,61445.0,61444.0,9.65653695]
[1727869336096,3.65380813,61445.0,61444.0,8.64170977]
[1727869336318,3.68516929,61445.0,61444.0,2.54906789]
[1727869336532,1.88699056,61410.0,61378.0,0.18994934]
[1727869336768,2.83699056,61409.0,61387.0,0.002]
[1727869337001,1.54839056,61409.0,61406.0,0.00325635]
[1727869337221,1.27349056,61409.0,61401.0,0.005]
[1727869337442,1.27349056,61410.0,61402.0,0.011634]
[1727869337659,1.27149056,61412.0,61406.0,0.005]
[1727869337879,1.27149056,61414.0,61406.0,0.005]
[1727869338111,1.27149056,61418.0,61406.0,0.005]
[1727869338389,1.32028913,61419.0,61406.0,0.005]
[1727869338611,1.27149056,61418.0,61406.0,0.005]
[1727869338827,0.014,61410.0,61406.0,0.005]
[1727869339040,1.37149056,61409.0,61406.0,0.005]
[1727869339696,1.38549056,61409.0,61406.0,0.005]
[1727869340352,1.39702888,61409.0,61406.0,0.005]
[1727869340571,1.39702888,61409.0,61408.0,0.011634]
[1727869340572,1.40902888,61409.0,61408.0,0.011634]
[1727869341001,1.30902888,61409.0,61408.0,0.04807753]
[1727869341227,1.30902888,61409.0,61408.0,0.21092253]
[1727869341445,1.30902888,61409.0,61408.0,0.011634]
[1727869342219,1.30902888,61409.0,61408.0,0.03562085]
[1727869342462,1.36538654,61409.0,61408.0,0.03062085]
[1727869342704,1.46538654,61409.0,61408.0,0.02562085]
[1727869342917,1.46538654,61409.0,61408.0,0.006634]
[1727869342918,1.40902888,61409.0,61408.0,0.006634]
[1727869343351,1.39702888,61409.0,61408.0,0.006634]
[1727869343572,1.40502888,61409.0,61408.0,0.006634]
[1727869343791,1.41802888,61409.0,61408.0,0.006634]
[1727869344226,1.40502888,61409.0,61408.0,0.006634]
[1727869344458,1.41802888,61409.0,61408.0,0.006634]
[1727869344868,1.41002888,61409.0,61408.0,0.006634]
[1727869345303,1.41802888,61409.0,61408.0,0.006634]
[1727869345521,1.39249056,61409.0,61408.0,0.006634]
[1727869348652,1.41802792,61409.0,61408.0,0.006634]
[1727869348879,0.14653736,61409.0,61408.0,0.011634]
[1727869349101,0.04653736,61409.0,61408.0,0.03211794]
[1727869349325,0.04653736,61409.0,61408.0,0.05607607]
[1727869349574,0.04653736,61409.0,61408.0,0.21892107]
[1727869350249,0.03353736,61409.0,61408.0,0.21892107]
[1727869350466,0.03353736,61409.0,61408.0,0.05607607]
[1727869350685,0.04553736,61409.0,61408.0,0.05607607]
[1727869350911,0.04553736,61409.0,61408.0,0.21892107]
[1727869351384,0.02553736,61409.0,61408.0,0.21892107]
[1727869351605,0.02553736,61409.0,61408.0,0.05607607]
[1727869351606,0.02853736,61409.0,61408.0,0.05607607]
[1727869351823,0.03553736,61409.0,61408.0,0.21892107]
[1727869352051,0.02853736,61409.0,61408.0,0.21892107]
[1727869352282,0.02953736,61409.0,61408.0,0.21892107]
[1727869352513,0.004,61409.0,61408.0,0.21892107]
[1727869352961,0.001,61409.0,61408.0,0.21892107]
[1727869353184,1.271491,61411.0,61410.0,0.325678]
[1727869353436,1.371491,61419.0,61410.0,0.19994934]
[1727869353695,0.1,61419.0,61418.0,0.19994934]
[1727869353921,0.04879358,61430.0,61426.0,0.005]
[1727869354144,0.1,61428.0,61427.0,0.005]
[1727869354360,1.371491,61428.0,61427.0,0.005]
[1727869354573,1.42784866,61428.0,61427.0,0.005]
[1727869355882,1.39702185,61428.0,61427.0,0.005]
[1727869356347,0.03653085,61428.0,61427.0,0.005]
[1727869357686,0.05053085,61428.0,61427.0,0.005]
[1727869358982,0.05053085,61428.0,61426.0,0.005]
[1727869359203,0.05053085,61428.0,61427.0,0.005]
[1727869359906,0.03653085,61428.0,61427.0,0.005]
[1727869360403,0.05053085,61428.0,61427.0,0.02999493]
[1727869360626,0.05053085,61428.0,61427.0,0.03376406]
[1727869360839,0.03653085,61428.0,61427.0,0.03376406]
[1727869361052,0.41242285,61428.0,61427.0,0.03376406]
[1727869361281,0.57320985,61428.0,61427.0,0.01]
[1727869361707,0.41185585,61428.0,61427.0,0.01]
[1727869362474,0.05053085,61428.0,61427.0,0.01]
[1727869363150,0.05053085,61428.0,61427.0,0.03373797]
[1727869363358,0.05053085,61428.0,61427.0,0.01]
[1727869363565,0.05053085,61428.0,61427.0,0.03373797]
[1727869363770,0.05053085,61428.0,61427.0,0.01]
[1727869363984,0.05053085,61428.0,61427.0,0.03373797]
[1727869364190,0.05053085,61428.0,61427.0,0.01]
[1727869364398,0.05053085,61428.0,61427.0,0.03373797]
[1727869364607,0.05134985,61428.0,61427.0,0.02999493]
[1727869364813,0.025819,61428.0,61427.0,0.0537329]
[1727869365029,0.025819,61428.0,61427.0,0.03373797]
[1727869365449,0.025819,61428.0,61427.0,0.02873797]
[1727869365657,0.125819,61428.0,61427.0,0.02873797]
[1727869365875,0.125819,61428.0,61427.0,0.005]
[1727869366083,0.888169,61428.0,61427.0,0.005]
[1727869366287,0.888159,61428.0,61427.0,0.005]
[1727869366673,0.841351,61428.0,61427.0,0.005]
[1727869367094,0.025819,61428.0,61427.0,0.005]
[1727869367723,0.025819,61428.0,61427.0,0.02999493]
[1727869367934,0.05134717,61428.0,61427.0,0.05368522]
[1727869368351,0.05134717,61428.0,61427.0,0.24688933]
[1727869368559,0.05134717,61428.0,61427.0,0.24363456]
[1727869370991,0.05134717,61428.0,61427.0,0.22363963]
[1727869372293,0.025819,61428.0,61427.0,0.22363963]
[1727869373180,0.011819,61428.0,61427.0,0.22363963]
[1727869373396,0.017819,61428.0,61427.0,0.22363963]
[1727869373612,0.006819,61428.0,61427.0,0.22363963]
[1727869374506,0.006819,61428.0,61427.0,0.05605425]
[1727869375446,0.03234576,61428.0,61427.0,0.05605425]
[1727869377077,0.03234576,61428.0,61427.0,0.03369029]
[1727869381745,0.006819,61428.0,61427.0,0.03369029]
[1727869382025,0.000819,61428.0,61427.0,0.03369029]
[1727869382248,0.009819,61428.0,61427.0,0.03369029]
[1727869382703,0.013819,61428.0,61427.0,0.03369029]
[1727869385056,0.03934639,61428.0,61427.0,0.03369029]
[1727869385274,0.013819,61428.0,61427.0,0.03369029]
[1727869385491,0.013819,61428.0,61427.0,0.01]
[1727869385720,0.013819,61428.0,61427.0,0.03364177]
[1727869385938,0.013819,61428.0,61427.0,0.03235911]
[1727869386150,0.013819,61428.0,61427.0,0.05600088]
[1727869387024,0.013819,61428.0,61427.0,0.03364177]
[1727869388390,0.03934641,61428.0,61427.0,0.03364177]
[1727869389235,0.74980241,61428.0,61427.0,0.01]
[1727869389658,0.724275,61428.0,61427.0,0.01]
[1727869389898,0.724275,61428.0,61427.0,0.005]
[1727869390113,0.803075,61428.0,61427.0,0.005]
[1727869390546,0.092619,61428.0,61427.0,0.005]
[1727869390756,0.941841,61428.0,61427.0,0.005]
[1727869392310,0.650741,61428.0,61427.0,0.005]
[1727869392531,0.544771,61428.0,61427.0,0.005]
[1727869392741,0.57029871,61428.0,61427.0,0.005]
[1727869392959,0.544771,61428.0,61427.0,0.005]
[1727869394065,0.544771,61428.0,61427.0,0.013538]
[1727869394312,0.644771,61428.0,61427.0,0.013538]
[1727869395253,0.013819,61428.0,61427.0,0.018538]
[1727869395472,0.013819,61428.0,61427.0,0.03971225]
[1727869395903,0.03934555,61428.0,61427.0,0.03971225]
[1727869396129,0.03934555,61428.0,61427.0,0.06399698]
[1727869396569,0.03934555,61428.0,61427.0,0.04282273]
[1727869396990,0.013819,61428.0,61427.0,0.018538]
[1727869397874,0.013819,61428.0,61427.0,0.04282273]
[1727869398081,0.013819,61428.0,61427.0,0.018538]
[1727869398294,0.013819,61428.0,61427.0,0.04282273]
[1727869398494,0.013819,61428.0,61427.0,0.018538]
[1727869398716,0.013819,61428.0,61427.0,0.04282273]
[1727869398922,0.013819,61428.0,61427.0,0.018538]
[1727869399128,0.013819,61428.0,61427.0,0.04282273]
[1727869399336,0.013819,61428.0,61427.0,0.018538]
[1727869399539,0.013819,61428.0,61427.0,0.04282273]
[1727869399747,0.013819,61428.0,61427.0,0.018538]
[1727869399966,0.03934645,61428.0,61427.0,0.03782273]
[1727869400172,0.41374645,61428.0,61427.0,0.013538]
[1727869400380,0.46261044,61428.0,61427.0,0.013538]